Cogmind - Beta 11.1 @@@ ROGUE MODE // 2022.12.18 @ 19:01:58 Player: QQQQ Result: Self-destructed Performance ------------- Evolutions (2) 1000 Regions Visited (7) 1400 Robots Destroyed (15) 75 Value Destroyed (199) 199 Prototype IDs (5) 100 Alien Tech Used (0) 0 Bonus (1198) 1198 TOTAL SCORE: 3972 Bonus ------- Follower Combat Kills 198 Entered Garrisons 200 Used RIF Installer 500 Aligned with FarCom 300 Cogmind --------- Core Integrity 479/550 Matter 256/300 Energy 21/100 System Corruption 0% Temperature Cool (27) Movement Core (500) Ox9 Location -8/Materials Parts ------- > --- POWER (1) -------- (None) > --- PROPULSION (4) --- Airjet Gravmag System > --- UTILITY (4) ------ Large Storage Unit Visual Processing Unit Modified TNC > --- WEAPON (2) ------- Slug Cannon Axe > --- INVENTORY (15) --- Light Ion Engine Gravmag System Gravmag System Small Storage Unit Medium Storage Unit High-capacity Matter Pod (200) Improved Light Armor Plating Improved Light Armor Plating Hacking Suite Minigun Gauss Cannon Improved Datajack Peak State ------------ > --- POWER ------------ Light Deuterium Engine > --- PROPULSION ------- Airjet Airjet Gravmag System Gravmag System > --- UTILITY ---------- Large Storage Unit Weight Redist. System Visual Processing Unit Modified TNC > --- WEAPON ----------- Gauss Cannon Slug Cannon > --- INVENTORY -------- Light Ion Engine Gravmag System Gravmag System Small Storage Unit Medium Storage Unit High-capacity Matter Pod Improved Light Armor Plating Improved Light Armor Plating Hacking Suite Minigun Improved Datajack Axe [Rating: 39] Favorites ----------- Power Light Nuclear Core Engine Light Ion Engine Power Core Light Nuclear Core Propulsion Aluminum Leg Leg Aluminum Leg Wheel Wheel Hover Unit Airjet Utility Small Storage Unit Device Structural Scanner Storage Small Storage Unit Processor Modified TNC Weapon Improved Assault Rifle Ballistic Gun Improved Assault Rifle Ballistic Cannon Slug Cannon Slashing Weapon Axe Build | -11 -10 -10 -10 -9 -8 -8 -8 ------- Run | Scr Mat Min Exi Min Mat Gar Mat Slots Evolved 4 | . . . . . 4 . . Power . | . . . . . . . . Propulsion 2 | . . . . . 2 . . Utility 2 | . . . . . 2 . . Weapon . | . . . . . . . . Parts Attached 38 | 7 5 2 1 4 14 1 4 Power 7 | 1 1 1 . . 4 . . Engine 5 | 1 1 . . . 3 . . Core 2 | . . 1 . . 1 . . Reactor . | . . . . . . . . Propulsion 7 | 2 . . . . 5 . . Treads . | . . . . . . . . Leg 2 | 2 . . . . . . . Wheel 1 | . . . . . 1 . . Hover 4 | . . . . . 4 . . Flight . | . . . . . . . . Utility 10 | 2 2 1 1 . 3 . 1 Device 3 | 1 1 . . . 1 . . Storage 5 | 1 1 1 . . 1 . 1 Processor 2 | . . . 1 . 1 . . Hackware . | . . . . . . . . Protection . | . . . . . . . . Artifact . | . . . . . . . . Weapon 14 | 2 2 . . 4 2 1 3 Energy Gun . | . . . . . . . . Energy Cannon . | . . . . . . . . Ballistic Gun 7 | 2 2 . . 3 . . . Ballistic Cannon 4 | . . . . 1 1 1 1 Launcher . | . . . . . . . . Special Weapon . | . . . . . . . . Impact Weapon . | . . . . . . . . Slashing Weapon 3 | . . . . . 1 . 2 Piercing Weapon . | . . . . . . . . Special Melee Weapon . | . . . . . . . . Unidentified Prototypes 3 | . 1 . 1 . 1 . . Parts Lost 4 | . . . . . . . 4 Power 1 | . . . . . . . 1 Propulsion 2 | . . . . . . . 2 Utility 1 | . . . . . . . 1 Weapon . | . . . . . . . . Highest Loss Streak 3 | . . . . . . . 3 To Critical Strikes . | . . . . . . . . Average Slot Usage (%) 97 | . 100 100 100 100 82 100 97 Engine 3 | . 14 3 . . 6 9 7 Core 9 | . . 10 14 14 2 . . Leg 22 | . 28 28 28 28 5 . . Hover 5 | . . . . . 19 36 36 Device 6 | . 14 14 5 . 3 9 9 Storage 12 | . 14 14 14 14 9 9 9 Processor 9 | . . . 8 14 14 18 18 Ballistic Gun 20 | . 28 28 28 22 4 . . Ballistic Cannon 4 | . . . . 5 7 17 14 Naked Turns . | . . . . . . . . Heaviest Build 39 | 13 22 22 17 20 25 29 39 Greatest Support 40 | 20 20 20 20 20 40 40 40 Greatest Overweight (x) 2 | 1 1 1 . . 2 . . Average Overweight (x) . | . . . . . . . . Largest Inventory Capacity 15 | 8 10 10 8 8 10 10 15 Average Capacity 8 | 7 9 8 8 8 9 10 13 Most Carried 12 | 3 10 10 8 8 10 10 12 Average Carried 8 | 2 7 8 7 7 9 10 11 Final Capacity 15 | 8 10 8 8 8 10 10 15 Final Carried 12 | 3 10 8 8 8 10 10 12 Class Distribution -------------------- 83% | Mutant 15% | Scout Dominant Class ---------------- Mutant | -10/Materials Mutant | -10/Mines Mutant | -10/Exiles Mutant | -9/Mines Scout | -8/Materials Scout | -8/Garrison Scout | -8/Materials Resources | -11 -10 -10 -10 -9 -8 -8 -8 ----------- Run | Scr Mat Min Exi Min Mat Gar Mat Matter Collected 870 | 274 . 314 20 58 130 74 . Remotely . | . . . . . . . . Salvage Created 275 | 13 . 200 . 17 6 10 29 Parts 30 | 2 . 21 . . 2 2 3 Haulers Intercepted . | . . . . . . . . Recyclers Shooed . | . . . . . . . . Parts Field Recycled . | . . . . . . . . Retrieved Matter . | . . . . . . . . Parts Self-Destructed . | . . . . . . . . Prevented . | . . . . . . . . Kills | -11 -10 -10 -10 -9 -8 -8 -8 ------- Run | Scr Mat Min Exi Min Mat Gar Mat Combat Hostiles Destroyed 14 | . . 10 . 1 . 1 2 Melee 2 | . . . . . . . 2 Guns 11 | . . 10 . 1 . . . Cannons 1 | . . . . . . 1 . Classes Destroyed 5 | 1 . 2 . 1 1 . . Worker 1 | . . . . . 1 . . Tunneler 1 | 1 . . . . . . . Swarmer 11 | . . 8 . . . 1 2 Grunt 2 | . . 2 . . . . . Assembled 1 | . . . . 1 . . . Best Kill Streak 3 | 1 . 3 . 1 1 1 2 Combat Bots Only 3 | . . 3 . 1 . 1 2 Max Kills in Single Turn 1 | 1 . 1 . 1 1 1 1 Gunslinging . | . . . . . . . . Exploded . | . . . . . . . . Melee 1 | . . . . . . . 1 Uniques/NPCs Destroyed . | . . . . . . . . Combat | -11 -10 -10 -10 -9 -8 -8 -8 -------- Run | Scr Mat Min Exi Min Mat Gar Mat Damage Taken 799 | . . 326 . 26 47 67 333 Core 117 | . . 46 . . . 12 59 Absorbed by Shields 5 | . . . . . . 5 . Core Remaining (%) 90 | 100 . . . 81 . . . Volleys Fired 39 | 2 1 23 . 3 3 3 4 Largest 2 | 2 2 2 . 2 1 2 1 Hottest 96 | 40 46 46 . 46 48 96 48 Shots Fired 71 | 4 2 46 . 6 3 6 4 Gun 58 | 4 2 46 . 6 . . . Cannon 13 | . . . . . 3 6 4 Launcher . | . . . . . . . . Special . | . . . . . . . . Kinetic 71 | 4 2 46 . 6 3 6 4 Thermal . | . . . . . . . . Explosive . | . . . . . . . . Electromagnetic . | . . . . . . . . Robot Hit Streak 21 | 2 4 21 . 3 . 1 2 Robot Miss Streak 3 | 1 . 2 . 2 3 2 3 Penetration Max . | . . . . . . . . Secondary Targets 4 | . . 4 . . . . . Max Gunslinging Chain 1 | . . 1 . . . . . Shots Hit Robots 54 | 3 2 36 . 3 1 3 6 Core Hits 19 | 2 . 11 . 2 1 1 2 Critical Kills . | . . . . . . . . Critical Parts Destroyed 1 | . . 1 . . . . . Critical Strikes 1 | . . 1 . . . . . Destroy 1 | . . 1 . . . . . Melee Attacks 14 | . . . . . 3 . 11 Impact . | . . . . . . . . Slashing 14 | . . . . . 3 . 11 Piercing . | . . . . . . . . Sneak Attacks . | . . . . . . . . Combat Hostiles . | . . . . . . . . Follow-up Attacks . | . . . . . . . . Damage Inflicted 1101 | 24 31 593 . 48 56 138 211 Guns 696 | 24 31 593 . 48 . . . Cannons 183 | . . . . . 15 138 30 Explosions . | . . . . . . . . Melee 222 | . . . . . 41 . 181 Ramming . | . . . . . . . . Kinetic 879 | 24 31 593 . 48 15 138 30 Thermal . | . . . . . . . . Explosive . | . . . . . . . . Electromagnetic . | . . . . . . . . Impact . | . . . . . . . . Slashing 222 | . . . . . 41 . 181 Piercing . | . . . . . . . . Highest Corruption . | . . . . . . . . Average Corruption . | . . . . . . . . Corruption Purged . | . . . . . . . . Corruption Blocked . | . . . . . . . . Overload Shots . | . . . . . . . . Overflow Damage . | . . . . . . . . Projectiles . | . . . . . . . . Explosions . | . . . . . . . . Melee . | . . . . . . . . Knockbacks 2 | . . . . . . 1 1 Impact . | . . . . . . . . Kinetic 2 | . . . . . . 1 1 Secondary . | . . . . . . . . Self-Inflicted Damage . | . . . . . . . . Shots . | . . . . . . . . Rammed . | . . . . . . . . Targets Rammed . | . . . . . . . . Kicked . | . . . . . . . . Crushed . | . . . . . . . . Highest Temperature 99 | . . 10 . . 12 99 15 Average Temperature 25 | . . 3 . . 7 52 9 Received Heat Transfer 193 | . . 48 . . 9 28 108 Siege Activations . | . . . . . . . . Robots Corrupted . | . . . . . . . . Combat Hostiles . | . . . . . . . . Parts Fried . | . . . . . . . . Impact Corruptions . | . . . . . . . . Robots Melted . | . . . . . . . . Combat Hostiles . | . . . . . . . . Parts Melted . | . . . . . . . . Heat Transferred . | . . . . . . . . Parts Sabotaged . | . . . . . . . . Parts Stolen . | . . . . . . . . Parts Stripped . | . . . . . . . . Power Chain Reactions . | . . . . . . . . Missiles Intercepted . | . . . . . . . . Alert | -11 -10 -10 -10 -9 -8 -8 -8 ------- Run | Scr Mat Min Exi Min Mat Gar Mat Peak Influence 222 | 5 47 168 . . 168 213 222 Initial 109 | . 3 18 . . . 109 103 Average 47 | 1 22 84 . . 72 150 148 Maximum Alert Level 1 | . . . . . . 1 1 Low Security (%) 99 | 100 100 100 . 100 100 92 92 Level 1 . | . . . . . . 7 7 Level 2 . | . . . . . . . . Level 3 . | . . . . . . . . Level 4 . | . . . . . . . . Level 5 . | . . . . . . . . High Security . | . . . . . . . . Max Security . | . . . . . . . . Squads Dispatched 2 | . 1 . . . . . 1 Investigation . | . . . . . . . . Extermination . | . . . . . . . . Reinforcement 2 | . 1 . . . . . 1 Assault . | . . . . . . . . Garrison . | . . . . . . . . Intercept . | . . . . . . . . Searches Triggered . | . . . . . . . . Construction Impeded . | . . . . . . . . Haulers Reinforced . | . . . . . . . . Active Scanning Responses . | . . . . . . . . Cargo Convoy Interrupts . | . . . . . . . . Stealth | -11 -10 -10 -10 -9 -8 -8 -8 --------- Run | Scr Mat Min Exi Min Mat Gar Mat Distress Signals 2 | . . . . 1 . . 1 Communications Jammed . | . . . . . . . . Distress Signals . | . . . . . . . . Times Spotted 39 | . 3 14 . 2 5 7 8 Peak Tracking Total 8 | . 1 3 . 1 2 3 8 Tactical Retreats 3 | . . 3 . . . . . Traps | -11 -10 -10 -10 -9 -8 -8 -8 ------- Run | Scr Mat Min Exi Min Mat Gar Mat Traps Triggered 2 | . . . . . . 2 . Indirectly . | . . . . . . . . Trap Hack Attempts . | . . . . . . . . Triggered . | . . . . . . . . Disarmed . | . . . . . . . . Reprogrammed . | . . . . . . . . Reused . | . . . . . . . . Traps Extracted . | . . . . . . . . Installed . | . . . . . . . . Triggered . | . . . . . . . . Machines | -11 -10 -10 -10 -9 -8 -8 -8 ---------- Run | Scr Mat Min Exi Min Mat Gar Mat Machines Disabled . | . . . . . . . . Max in Single Turn . | . . . . . . . . Machines Sabotaged . | . . . . . . . . Garrisons Compromised . | . . . . . . . . Overloaded Fab Kills . | . . . . . . . . Hacking | -11 -10 -10 -10 -9 -8 -8 -8 --------- Run | Scr Mat Min Exi Min Mat Gar Mat Machines Accessed 11 | . 5 . . 1 3 . 2 Terminals 10 | . 5 . . 1 2 . 2 Fabricators . | . . . . . . . . Repair Stations . | . . . . . . . . Recycling Units . | . . . . . . . . Scanalyzers . | . . . . . . . . Garrison Access 1 | . . . . . 1 . . Total Hacks 23 | . 10 . . 2 6 . 5 Successful 8 | . 4 . . . 2 . 2 Failed 15 | . 6 . . 2 4 . 3 Catastrophic 5 | . 2 . . 1 2 . . Database Lockouts . | . . . . . . . . Manual 21 | . 10 . 1 2 5 . 3 Terminals 22 | . 10 . . 2 5 . 5 Fabricators . | . . . . . . . . Repair Stations . | . . . . . . . . Recycling Units . | . . . . . . . . Scanalyzers . | . . . . . . . . Garrison Access 1 | . . . . . 1 . . Terminal Hacks 7 | . 4 . . . 1 . 2 Robot Analysis 3 | . 3 . . . . . . Prototype ID Bank 1 | . . . . . . . 1 Branch Access Points 3 | . 1 . . . 1 . 1 Fabricator Hacks . | . . . . . . . . Repair Station Hacks . | . . . . . . . . Recycling Unit Hacks . | . . . . . . . . Scanalyzer . | . . . . . . . . Garrison Access Hacks 1 | . . . . . 1 . . Unlock Access 1 | . . . . . 1 . . Unauthorized Hacks . | . . . . . . . . Terminals . | . . . . . . . . Fabricators . | . . . . . . . . Repair Stations . | . . . . . . . . Recycling Units . | . . . . . . . . Scanalyzers . | . . . . . . . . Garrison Access . | . . . . . . . . Data Cores Recovered . | . . . . . . . . Used . | . . . . . . . . Hacking Detections 9 | . 4 . . 1 2 . 2 Full Trace Events . | . . . . . . . . Feedback Events . | . . . . . . . . Feedback Blocked . | . . . . . . . . Robot Schematics Acquired . | . . . . . . . . Robots Built . | . . . . . . . . Authchips . | . . . . . . . . Time . | . . . . . . . . Total Robot Build Rating . | . . . . . . . . Part Schematics Acquired . | . . . . . . . . Parts Built . | . . . . . . . . Authchips . | . . . . . . . . Time . | . . . . . . . . Total Part Build Rating . | . . . . . . . . Parts Repaired . | . . . . . . . . Time . | . . . . . . . . Parts Recycled . | . . . . . . . . Recycled Matter . | . . . . . . . . Retrieved Matter . | . . . . . . . . Retrieved Components . | . . . . . . . . Parts Scanalyzed . | . . . . . . . . Part Schematics Acquired . | . . . . . . . . Parts Damaged . | . . . . . . . . Bothacking | -11 -10 -10 -10 -9 -8 -8 -8 ------------ Run | Scr Mat Min Exi Min Mat Gar Mat Used RIF Installer 1 | . . . . . . 1 . Robots Hacked . | . . . . . . . . Non-combat . | . . . . . . . . Combat . | . . . . . . . . Robot Hacks Applied . | . . . . . . . . Relay Couplers Released . | . . . . . . . . Fabnet Peak Effective % . | . . . . . . . . Robots Rewired . | . . . . . . . . Allies Hacked . | . . . . . . . . Hacks Repelled . | . . . . . . . . Allies | -11 -10 -10 -10 -9 -8 -8 -8 -------- Run | Scr Mat Min Exi Min Mat Gar Mat Total Allies 3 | . . . . 3 . . . Largest Group 3 | . . . . 3 3 3 . Highest-Rated Group 40 | . . . . 40 40 40 . Highest-Rated Ally 16 | . . . . 16 16 16 . Total Orders . | . . . . . . . . Ally Attacks 36 | . . . . . 24 12 . Total Damage 417 | . . . . . 286 131 . Kills 8 | . . . . . 3 5 . Allies Corrupted . | . . . . . . . . Allies Melted . | . . . . . . . . Intel | -11 -10 -10 -10 -9 -8 -8 -8 ------- Run | Scr Mat Min Exi Min Mat Gar Mat Robot Analysis Total 3 | . 3 . . . . . . Derelict Logs Recovered 2 | . . 1 . 1 . . . Drone Launches . | . . . . . . . . Drone Recoveries . | . . . . . . . . Exploration | -11 -10 -10 -10 -9 -8 -8 -8 ------------- Run | Scr Mat Min Exi Min Mat Gar Mat Turns Passed 3418 | 72 271 737 425 1222 369 128 194 Spaces Moved 2543 | 43 203 538 352 759 351 113 184 Core 8 | 8 . . . . . . . Treads . | . . . . . . . . Legs 1891 | 35 203 538 352 759 4 . . Wheels 133 | . . . . . 133 . . Hover 511 | . . . . . 214 113 184 Flight . | . . . . . . . . Fastest Speed 48 | 50 120 120 120 120 48 48 48 Average Speed 105 | 126 120 120 120 120 73 48 48 Slowest Speed 190 | 190 190 190 120 120 120 48 48 Overloaded Moves . | . . . . . . . . Propulsion Burnouts . | . . . . . . . . Robots Hopped . | . . . . . . . . Cave-ins Triggered . | . . . . . . . . Exploration Rate (%) 47 | 3 40 80 71 94 17 43 29 Regions Visited 7 Branch Regions 3 Pre-discovered Areas 1 | . . . . 1 . . . Known Exits Taken 2 | . 1 . . . 1 . . Unknown Exits Taken 4 | 1 . 1 1 1 . . . Scrap Searched 3 | . . 1 . 2 . . . Spaces Dug 5 | . . . . . . . 5 Terrain Destroyed 8 | . . . . . 1 . 7 Melee 5 | . . . . . . . 5 Projectile 3 | . . . . . 1 . 2 AOE . | . . . . . . . . Terrain Rammed . | . . . . . . . . Walls Destroyed . | . . . . . . . . Machines Disabled . | . . . . . . . . Actions | -11 -10 -10 -10 -9 -8 -8 -8 --------- Run | Scr Mat Min Exi Min Mat Gar Mat Total 3176 | 54 225 583 355 1064 451 179 265 Wait 484 | . 7 16 . 291 66 48 56 Move 2536 | 42 202 537 351 758 350 112 184 Hop . | . . . . . . . . Pick Up 29 | 3 8 1 1 4 8 . 4 Fast Attach 14 | 7 . 1 1 . 5 . . Attach 3 | . . . . . 3 . . Detach . | . . . . . . . . Swap 21 | . 5 1 . 4 6 1 4 Drop 21 | . 2 4 2 4 7 . 2 Fire 39 | 2 1 23 . 3 3 3 4 Melee 14 | . . . . . 3 . 11 Ram . | . . . . . . . . Kick . | . . . . . . . . Crush . | . . . . . . . . Escape Stasis 15 | . . . . . . 15 . Rewire . | . . . . . . . . Trap . | . . . . . . . . Miscellaneous . | . . . . . . . . Route ------- -11/Scrapyard -10/Materials (discovered 3 exits: [*Mat] / *Min x2) -10/Mines (discovered 2 exits: [*Mat] / *Exi) -10/Exiles -9/Mines -8/Materials (discovered 2 exits: Fac / Gar) -8/Garrison -8/Materials History --------- Turn | Location | Event 16 | -11/Scrapyard | Discovered new exit (range 15) 73 | -11/Scrapyard | Entered Materials 242 | -10/Materials | Discovered new exit (range 16) 253 | -10/Materials | Identified exit to Mines 302 | -10/Materials | Build established: Mutant 344 | -10/Materials | Entered Mines 436 | -10/Mines | Learned 2 Materials zone layouts 579 | -10/Mines | Discovered new exit (range 6) 1011 | -10/Mines | Deemed a non-threat by the Exiles lab entrance 1011 | -10/Mines | Discovered new exit (range 5) 1081 | -10/Mines | Entered Exiles 1111 | -10/Exiles | Met 8R-AWN 1131 | -10/Exiles | Met EX-HEX 1165 | -10/Exiles | Met EX-BIN 1219 | -10/Exiles | Aligned with FarCom system 1221 | -10/Exiles | Given EX-Vault access code 1249 | -10/Exiles | Opened EX-Vault 1255 | -10/Exiles | Found Prototype Processor 1255 | -10/Exiles | Identified Modified TNC 1280 | -10/Exiles | Warned to stay clear of 0b10 Research branches 1315 | -10/Exiles | Met EX-DEC 1491 | -10/Exiles | Discovered new exit (range 14) 1506 | -10/Exiles | Left Exiles lab with Modified TNC 1506 | -10/Exiles | Entered Mines 1507 | -9/Mines | Assembled infested the area 1524 | -9/Mines | Met a Derelict bent on vengeance 1762 | -9/Mines | Found a hidden stash of uninstalled traps 1879 | -9/Mines | Learned location of Storage (-7) 2263 | -9/Mines | A weapon hastily lodged in a ceiling crevice suddenly fell to the ground 2489 | -9/Mines | Assisted by bots powering up and referring to "LRC-V3" 2682 | -9/Mines | Discovered new exit (range 4) 2728 | -9/Mines | Entered Materials 2728 | -8/Materials | Accompanied by 3 allies 2728 | -8/Materials | Evolved 4 slots: Propulsion x2, Utility x2 2729 | -8/Materials | Identified exit to Factory 2765 | -8/Materials | Identified exit to Garrison 3097 | -8/Materials | Entered Garrison 3097 | -8/Garrison | Accompanied by 3 allies 3100 | -8/Garrison | Installed Relay Interface Framework 3158 | -8/Garrison | Triggered checkpoint 3178 | -8/Garrison | Build established: Scout 3215 | -8/Garrison | Discovered new exit (range 8) 3225 | -8/Garrison | Entered Materials 3419 | -8/Materials | Self-destructed Last Messages --------------- 03352_ C-30 ARC bursts open, deploying its payload. 03352_ L-31 Rogue unfolds itself. 03352_ G-47 Trooper unfolds itself. 03354_ Acquired Imp. Datajack. 03360_ ALERT: Hostiles spotted, dispatching reinforcements to Terminal M005. 03360_ K-01 Serf cleans the Processing Tank. 03364_ K-01 Serf collects debris. 03366_ K-01 Serf destroyed. 03367_ K-01 Serf collects debris. 03373_ S-10 Pest knocked back. 03378_ Lgt. Deuterium Engine destroyed. 03389_ S-10 Pest destroyed. 03410_ Slug penetrates Wall. 03413_ Gravmag System destroyed. 03413_ Slug penetrates Wall. 03413_ Airjet destroyed. 03416_ Slug penetrates Wall. 03419_ Weight Redist. System destroyed. 03419_ Critical hit (Burn: +37). Map ----- +----------------------------------------------------+ | ????????????????????????????????????? | | ????????????????????????????????????? | | ????????????????????????????????????? | | ????????????????????????????????????? | | ????????????????????????????????????? | | ???????????????????###??????????????? | | ???????????????????#==??????????????? | | ???????????????????#==??????????????? | | ???????????????????# ??????????????? | | ???????????????????# #??????????????? | | ?????#?????????????# #??????????????? | | ?????# ??????????# #??????????????? | | ?????# ########### ###????????????? | | ?????# #????????????? | | ?????# +????????????? | | ?????#"% #????????????? | | ??#??# " ######"##### ##????????????? | | ??? ?# a # ## #?????????????? | | ???"?# # a *"""## ##????????????? | | "??? # # """ %=Y"## "?????????????? | | """? # # """ !"""##="?????????????? | | """??/ + """ ##%#?????????????? | | ""???# # """ ## #?????????????? | | ""???# # """ ## #?????????????? | | "????# # ## ######????????? | | ????# ####"####### g @=#????????? | | #????# # #???#+####%#????????? | | ###### # ""#??????h??l#????????? | | + Y"#?????????? ????????? | | #"######## ! ""#??????????##???????? | | ##??????# #???????????????????? | | #???????# #???????????????????? | | #???????########???????????????????? | | ###????????????????????????????????? | | # #????????????????????????????????? | | "#?????????????????????????????????? | | ###############?????????????????????? | | ???????????????????? | | ???????????????????? | | ???????????????????? | | ########+####???????????????????????? | | #????????????????????????????????? | | #????????????????????????????????? | | #????????????????????????????????? | | #????????????????????????????????? | | !#????????????????????????????????? | | #????????????????????????????????? | | #????????????????????????????????? | | #????????????????????????????????? | | ####????????????????????????????????? | +----------------------------------------------------+ Best States ------------- Heat Dissipation 31 Energy Generation 14 Energy Capacity 250 Matter Stores 300 Matter Capacity 300 Sight Range 18 Terrain Scan Range 16 Terrain Scan Density 10 Additional Mass Support 6 Evasion (%) 55 Item Schematics ----------------- None Robot Schematics ------------------ None Fabricated ------------ Nothing Alien Tech Used ----------------- None Achievements -------------- None Challenges ------------ None Game ------ Seed BattleMiningNetwork Manual? 0 Play Time 00:47:27 Cumulative 38.5 hours Start 2022.12.18 @ 16:35:09 End 2022.12.18 @ 19:01:58 Sessions 5 Manual Loads 0 Difficulty Rogue Special Mode None Game No. 27 Rogue 27 Adventurer 0 Explorer 0 Win Type - Total 0 Types 0/0/0/0/0/0/0/0/0 Lore% 34 Gallery% 32 Achievement% 30 Wizard Run 0 Options --------- ASCII 0 Keyboard 0 Movement Mouse Keybinds 0 Fullscreen 2 Font 18/TerminusBold Map View 76x50 Tactical HUD 1 Map Filters NONE Filters NONE Steam 1 RUN: 8eeb4dfc-8aa8-457b-9c5e-60d8e7dc372f